Cogmind - Beta 16.1 @@@ ROGUE MODE // 2026.03.09 @ 04:09:32 Player: Sen Result: Destroyed by S-27 Virus with Autogun Performance ------------- Evolutions (4) 2000 Regions Visited (16) 3200 Robots Destroyed (191) 955 Value Destroyed (6370) 6370 Prototype IDs (26) 520 Alien Tech Used (1) 200 Bonus (2068) 2068 TOTAL SCORE: 15313 Bonus ------- High Alert Combat Kills 809 Follower Combat Kills 434 Met Data Miner 300 Met Imprinter 300 Was Imprinted 300 Friendly Fire -75 Cogmind --------- Core Integrity 0/850 Matter 300/300 Energy 109/125 System Corruption 0% Temperature Cool (3) Movement Flying (49) Location -5/Proximity Caves Parts ------- > --- POWER (1) -------- Light Ion Engine > --- PROPULSION (4) --- Makeshift Flight Unit Makeshift Flight Unit Makeshift Flight Unit Makeshift Flight Unit > --- UTILITY (9) ------ Medium Storage Unit Experimental Optical Array 0b10 Decoder Chip [Scout] 0b10 Decoder Chip [Skirmisher] Advanced Melee Analysis Suite Experimental Target Analyzer Improved Shield Generator Experimental Hacking Suite Improved System Shield > --- WEAPON (2) ------- Remote Datajack Power Sword > --- INVENTORY (10) --- Cesium-ion Thruster Makeshift Flight Unit Gravity Neutralizer Advanced Target Analyzer Makeshift Hacking Suite Autogun High-powered Shotgun Improved Proton Missile Launcher Improved Datajack Peak State ------------ > --- POWER ------------ Fusion Compressor > --- PROPULSION ------- Makeshift Flight Unit Makeshift Flight Unit Makeshift Flight Unit Makeshift Flight Unit > --- UTILITY ---------- Medium Storage Unit Experimental Optical Array 0b10 Decoder Chip [Scout] 0b10 Decoder Chip [Skirmisher] Advanced Melee Analysis Suite Experimental Target Analyzer Experimental Hacking Suite Improved System Shield Hacking Drone Bay > --- WEAPON ----------- Remote Datajack Power Sword > --- INVENTORY -------- Cesium-ion Thruster Makeshift Flight Unit Gravity Neutralizer Advanced Target Analyzer Improved Shield Generator Makeshift Hacking Suite Autogun High-powered Shotgun Improved Proton Missile Launcher Improved Datajack [Rating: 89] Favorites ----------- Power Heavy Deuterium Engine Engine Heavy Deuterium Engine Power Core Fusion Compressor Reactor Cold Fusion Reactor Propulsion Armored Wheel Treads Light Treads Leg Carbon-fiber Leg Wheel Armored Wheel Flight Unit Makeshift Flight Unit Utility Hacking Suite Device Seismic Detector Storage High-capacity Storage Unit Processor Corruption Screen Hackware Hacking Suite Protection Improved Utility Shielding Weapon Advanced Assault Cannon Energy Gun Gatling Laser Energy Cannon Particle Cannon Ballistic Gun Autogun Ballistic Cannon Advanced Assault Cannon Launcher Heavy Rocket Launcher Special Weapon Mining Laser Impact Weapon Heavy Flail Slashing Weapon Power Sword Build | -11 -10 -9 -9 -8 -7 -7 -7 -7 -7 -7 -6 -6 -6 -6 -6 -5 ------- Run | Yrd Mat Mat Min Mat Fac Was Fac Low Low Dat Pro Fac Low Low Zio Pro Slots Evolved 8 | . . 2 . 2 2 . . . . . . 2 . . . . Power . | . . . . . . . . . . . . . . . . . Propulsion 2 | . . . . . 1 . . . . . . 1 . . . . Utility 6 | . . 2 . 2 1 . . . . . . 1 . . . . Weapon . | . . . . . . . . . . . . . . . . . Parts Attached 169 | 7 11 17 5 25 21 2 3 4 2 . . 41 6 9 14 2 Power 16 | 1 . 1 1 4 1 . 1 . . . . 4 1 1 . 1 Engine 14 | 1 . 1 1 4 1 . 1 . . . . 3 1 . . 1 Core 1 | . . . . . . . . . . . . . . 1 . . Reactor 1 | . . . . . . . . . . . . 1 . . . . Propulsion 46 | 2 3 7 1 7 4 2 . . . . . 14 2 3 1 . Treads 13 | . . 2 . 6 4 . . . . . . 1 . . . . Leg 9 | . 2 . . . . . . . . . . 7 . . . . Wheel 18 | 2 1 5 1 1 . 2 . . . . . 6 . . . . Hover . | . . . . . . . . . . . . . . . . . Flight 6 | . . . . . . . . . . . . . 2 3 1 . Utility 65 | 1 2 6 3 9 10 . 2 1 . . . 15 1 3 12 . Device 24 | . . 4 3 2 3 . . . . . . 9 . 2 1 . Storage 5 | 1 1 . . . . . 1 . . . . . . 1 1 . Processor 16 | . 1 . . . 1 . 1 . . . . 4 1 . 8 . Hackware 5 | . . 1 . . 1 . . 1 . . . . . . 2 . Protection 15 | . . 1 . 7 5 . . . . . . 2 . . . . Artifact . | . . . . . . . . . . . . . . . . . Weapon 42 | 3 6 3 . 5 6 . . 3 2 . . 8 2 2 1 1 Energy Gun 13 | 1 4 . . 1 4 . . . . . . 2 . 1 . . Energy Cannon 7 | . . 2 . 1 1 . . . 1 . . 2 . . . . Ballistic Gun 9 | 2 1 1 . 2 . . . . . . . 1 1 1 . . Ballistic Cannon 4 | . . . . . . . . 1 1 . . 2 . . . . Launcher 3 | . . . . 1 . . . 1 . . . 1 . . . . Special Weapon 3 | . 1 . . . . . . 1 . . . . . . . 1 Impact Weapon 2 | . . . . . 1 . . . . . . . 1 . . . Slashing Weapon 1 | . . . . . . . . . . . . . . . 1 . Piercing Weapon . | . . . . . . . . . . . . . . . . . Special Melee Weapon . | . . . . . . . . . . . . . . . . . Unidentified Prototypes 12 | . . . . . . . 1 2 . . . 4 . . 5 . Corrupted Parts 2 | . . . . . . . . . . . . 2 . . . . System Corruption 9 | . . . . . . . . . . . . 9 . . . . Parts Lost 62 | . . . 1 4 10 1 . . 3 . 2 34 4 2 1 . Power 5 | . . . . . 1 . . . . . 1 2 1 . . . Propulsion 18 | . . . . . 1 . . . 2 . . 12 2 1 . . Utility 23 | . . . . 2 5 . . . 1 . 1 12 . 1 1 . Weapon 16 | . . . 1 2 3 1 . . . . . 8 1 . . . Highest Loss Streak 12 | . . . 1 4 6 1 . . 1 . 1 12 2 1 1 . To Critical Strikes 3 | . . . . . . . . . . . . 2 1 . . . Average Backups 16 | 2 15 19 19 19 18 18 18 19 18 17 17 12 2 3 8 9 Power 2 | . 2 4 4 2 2 3 3 3 3 3 2 1 . . . . Propulsion 2 | 1 4 6 6 4 2 2 2 2 2 1 1 . . 2 1 2 Utility 4 | . 2 2 3 5 7 8 7 7 4 4 3 4 . . 3 3 Weapon 5 | . 5 7 6 6 5 5 4 6 7 8 8 4 . . 2 3 Tool/Special . | . . . . . . . . . . . . . . . . . Unused Backups 32 | . 5 1 . 4 . . 8 3 . . . 2 . 3 1 5 Power 6 | . 1 1 . 2 . . 2 . . . . . . . . . Propulsion 5 | . 2 . . . . . . . . . . . . 2 . 1 Utility 7 | . . . . 1 . . 2 2 . . . . . . . 2 Weapon 12 | . 2 . . 1 . . 4 1 . . . 2 . . 1 1 Tool/Special 2 | . . . . . . . . . . . . . . 1 . 1 Average Slot Usage (%) 94 | . 99 92 100 98 98 84 91 99 99 100 98 84 65 63 90 99 Engine 7 | . 14 11 11 8 7 7 7 7 7 7 6 3 . . . 4 Treads 9 | . . 9 4 16 22 . . 21 11 7 7 2 . . . . Leg 1 | . 4 . . . . . . . . . . 5 11 3 . . Wheel 8 | . 22 12 17 1 . 14 15 1 9 14 14 11 . . . . Flight 2 | . . . . . . . . . . . . . 11 13 24 25 Device 11 | . . 7 11 12 7 13 15 15 15 7 8 15 6 9 4 6 Storage 7 | . 14 11 11 9 7 7 7 7 7 7 7 5 . . 6 6 Processor 14 | . 13 11 11 9 8 15 15 14 14 14 14 11 24 24 31 31 Hackware 10 | . . 3 11 9 11 15 15 14 14 14 14 9 . . 9 12 Protection 4 | . . 4 . 13 15 1 . . 5 14 10 3 . . . . Energy Gun 4 | . 14 1 2 5 6 7 6 6 2 . . 1 4 . . . Energy Cannon 2 | . . 12 8 4 2 . . . 1 . 1 2 . . . . Ballistic Gun 3 | . 13 6 11 6 4 . . . . . . . 1 10 2 . Ballistic Cannon 3 | . . . . . . . . 6 9 14 9 3 . . . . Peak Build Rating 89 | 6 12 19 21 25 38 40 42 57 51 50 50 67 47 46 84 89 Average Rating 39 | 4 9 15 19 22 32 31 36 43 48 50 47 57 44 40 74 82 On Entrance 35 | . 6 12 19 21 24 38 28 42 48 50 50 45 51 43 46 84 Avg Prop Armor Cover (%) 10 | . 9 . 5 . . . 11 17 13 9 10 8 20 18 4 2 Naked Turns . | . . . . . . . . . . . . . . . . . Heaviest Build 92 | 13 51 66 55 69 77 61 71 65 75 69 70 92 14 20 26 23 Greatest Support 66 | 26 26 40 24 43 63 24 24 60 60 24 24 66 22 29 32 24 Greatest Overweight (x) 24 | . 5 2 2 2 1 2 2 5 6 2 2 24 . 1 . . Average Overweight (x) 1 | . 1 1 2 1 . 2 2 1 3 2 2 1 . . . . Largest Inventory Capacity 20 | 8 20 20 20 20 20 20 20 20 20 20 20 20 5 8 10 10 Average Capacity 18 | 6 19 20 20 20 20 20 20 20 20 20 20 17 5 5 9 10 Most Carried 20 | 4 20 20 20 20 20 19 20 20 20 18 19 20 4 5 10 10 Average Carried 17 | 2 15 19 19 19 18 18 18 19 19 18 18 14 1 3 8 9 Final Capacity 20 | 8 20 20 20 20 20 20 20 20 20 20 20 5 5 8 10 10 Final Carried 20 | 4 20 20 20 20 18 19 20 20 18 18 17 4 1 3 9 9 Class Distribution -------------------- 47% | Hacker-Mutant 25% | Mutant 18% | Scavenger-Mutant 7% | Derelict-Mutant Dominant Class ---------------- Mutant | -10/Materials Mutant | -9/Materials Mutant | -9/Mines Scavenger-Mutant | -8/Materials Scavenger-Mutant | -7/Factory Hacker-Mutant | -7/Waste Hacker-Mutant | -7/Factory Hacker-Mutant | -7/Lower Caves Hacker-Mutant | -7/Lower Caves Hacker-Mutant | -7/Data Miner Hacker-Mutant | -6/Proximity Caves Hacker-Mutant | -6/Factory Mutant | -6/Lower Caves Sprinter | -6/Lower Caves Derelict-Mutant | -6/Zion Derelict-Mutant | -5/Proximity Caves Resources | -11 -10 -9 -9 -8 -7 -7 -7 -7 -7 -7 -6 -6 -6 -6 -6 -5 ----------- Run | Yrd Mat Mat Min Mat Fac Was Fac Low Low Dat Pro Fac Low Low Zio Pro Matter Collected 4732 | 214 357 274 233 576 583 . . 97 594 . 202 1067 158 114 208 55 Remotely . | . . . . . . . . . . . . . . . . . Salvage Created 6272 | . 517 648 450 1094 888 . . . 398 . 199 1832 93 . . 153 Parts 342 | . 35 45 37 61 50 . . . 23 . 10 73 2 . . 6 Haulers Intercepted 1 | . . . . 1 . . . . . . . . . . . . Recyclers Shooed 10 | . 1 2 1 1 . . . . . . . 5 . . . . Parts Field Recycled 51 | . . . . . 8 . 7 . 13 . . 23 . . . . Retrieved Matter 904 | . . . . . 76 . 180 . 61 . . 587 . . . . Parts Self-Destructed 43 | . . . . . . . . . 23 . 8 . . . . 12 Prevented 18 | . . . . . . . . . 4 . . . 1 . . 13 Parts Restored . | . . . . . . . . . . . . . . . . . Kills | -11 -10 -9 -9 -8 -7 -7 -7 -7 -7 -7 -6 -6 -6 -6 -6 -5 ------- Run | Yrd Mat Mat Min Mat Fac Was Fac Low Low Dat Pro Fac Low Low Zio Pro Combat Hostiles Destroyed 140 | . 13 11 10 21 21 . . . 16 . 10 33 4 . . 1 Melee 3 | . . . . . . . . . . . . . 2 . . 1 Guns 45 | . 13 1 8 8 9 . . . . . . 6 . . . . Cannons 55 | . . 10 2 11 4 . . . 13 . 2 13 . . . . AOE 28 | . . . . 2 8 . . . 3 . 8 7 . . . . Classes Destroyed 16 | . 3 4 2 2 1 . . . 1 . 2 1 . . . . Worker 12 | . 1 1 . 1 6 . . . . . . 3 . . . . Builder 13 | . . 2 4 . 2 . . . . . . 5 . . . . Tunneler 5 | . . . 2 2 . . . . . . . 1 . . . . Hauler 1 | . . . . 1 . . . . . . . . . . . . Recycler 11 | . . 3 1 1 2 . . . . . . 4 . . . . Minesweeper 3 | . . . . . . . . . 1 . . . . . . 2 Operator 1 | . . . . . . . . . . . . 1 . . . . Drone 1 | . . . . . . . . . . . 1 . . . . . Watcher 5 | . . 1 . . 1 . . . . . . 3 . . . . Swarmer 39 | . 2 4 6 3 3 . . . 5 . 5 7 4 . . . Grunt 64 | . 11 6 3 11 12 . . . 8 . 2 11 . . . . Brawler 3 | . . . . 1 . . . . . . 1 1 . . . . Duelist 4 | . . . 1 1 . . . . . . . 2 . . . . Sentry 14 | . . 1 . 5 3 . . . 1 . . 3 . . . 1 Hunter 6 | . . . . . . . . . . . 1 5 . . . . Programmer 9 | . . . . . 3 . . . 2 . . 4 . . . . Decomposer 1 | . . . . . . . . . . . 1 . . . . . Best Kill Streak 12 | . 3 8 4 6 12 . . . 4 . 4 11 4 . . 1 Combat Bots Only 7 | . 3 4 4 6 4 . . . 4 . 4 7 4 . . 1 Max Kills in Single Turn 5 | . 1 1 2 2 5 . . . 2 . 2 3 1 . . 1 Gunslinging . | . . . . . . . . . . . . . . . . . Exploded 2 | . . . . 2 1 . . . 2 . 2 1 . . . . Melee 1 | . . . . . . . . . . . . . 1 . . 1 Uniques/NPCs Destroyed . | . . . . . . . . . . . . . . . . . Combat | -11 -10 -9 -9 -8 -7 -7 -7 -7 -7 -7 -6 -6 -6 -6 -6 -5 -------- Run | Yrd Mat Mat Min Mat Fac Was Fac Low Low Dat Pro Fac Low Low Zio Pro Hostile Shots Fired 1036 | . 50 40 40 115 212 1 . . 86 . 36 401 37 13 . 5 Missed 297 | . 9 12 10 28 66 . . . 28 . 13 108 13 6 . 4 Hits 739 | . 41 28 30 87 146 1 . . 58 . 23 293 24 7 . 1 Melee 35 | . . . 2 7 1 1 . . . . . 24 . . . . Projectile 704 | . 41 28 28 80 145 . . . 58 . 23 269 24 7 . 1 AOE 1 | . . . . . 1 . . . . . . . . . . . Critical Strikes 23 | . 1 1 . 3 3 1 . . 1 . . 11 2 . . . Actively Blocked 1 | . . . . . 1 . . . . . . . . . . . Damage Taken 11591 | . 491 269 326 1463 2146 57 . . 960 . 426 4829 423 175 . 26 Core 1861 | . 152 37 59 290 212 57 . . 87 . 108 745 88 . . 26 Absorbed by Shields 9 | . . . . . . . . . . . . . . . . 9 Redirected to Shielding 364 | . . . . 31 231 . . . 42 . . 60 . . . . Regen/Repaired (Parts) 109 | . 23 . . 86 . . . . . . . . . . . . Core Remaining (%) 59 | 100 39 . 76 47 . . . . . . 33 . . . . . Volleys Fired 455 | 1 46 33 40 75 66 . 1 1 44 . 21 125 . . . 2 Largest 2 | 2 2 2 2 2 2 . 1 2 2 . 2 2 . . . 1 Hottest 170 | 40 140 136 91 165 149 . 80 119 120 . 100 170 . . . 5 Shots Fired 850 | 2 92 66 80 138 125 . 1 3 86 . 41 213 1 . . 2 Gun 402 | 2 91 18 53 87 80 . 1 2 7 . . 60 1 . . . Cannon 378 | . . 45 27 44 28 . . . 77 . 31 126 . . . . Launcher 54 | . . . . 4 17 . . 1 2 . 10 20 . . . . Special 16 | . 1 3 . 3 . . . . . . . 7 . . . 2 Kinetic 377 | 2 45 18 40 46 48 . . . 65 . 24 89 . . . . Thermal 354 | . 33 48 40 77 51 . 1 2 19 . 7 75 1 . . . Explosive 54 | . . . . 4 17 . . 1 2 . 10 20 . . . . Electromagnetic 56 | . 14 . . 11 9 . . . . . . 22 . . . . Robot Hit Streak 24 | 1 10 12 8 13 12 . . 9 8 . 4 24 . . . 1 Robot Miss Streak 7 | 1 2 7 3 5 5 . . 2 7 . 7 6 . . . 1 Penetration Max 1 | . . . . . . . . . . . . 1 . . . . Secondary Targets . | . . . . . . . . . . . . . . . . . Shots Hit Robots 552 | 1 62 37 48 86 80 . . 1 61 . 15 147 5 . . 9 Core Hits 332 | 1 25 19 20 48 71 . . . 47 . 19 77 1 . . 4 Critical Kills 2 | . . . 1 . 1 . . . . . . . . . . . Critical Parts Destroyed 5 | . . . 1 1 . . . . . . . 1 2 . . . Critical Strikes 25 | . 1 . 2 3 4 . . . 2 . . 10 2 . . 1 Burn 10 | . 1 . . 2 3 . . . . . . 4 . . . . Destroy 4 | . . . 2 1 1 . . . . . . . . . . . Blast 6 | . . . . . . . . . 2 . . 4 . . . . Corrupt 1 | . . . . . . . . . . . . 1 . . . . Smash 3 | . . . . . . . . . . . . 1 2 . . . Sever 1 | . . . . . . . . . . . . . . . . 1 Melee Attacks 55 | . . . . . 2 . 8 1 . . . 17 15 . . 12 Impact 43 | . . . . . 2 . 8 1 . . . 17 15 . . . Slashing 12 | . . . . . . . . . . . . . . . . 12 Piercing . | . . . . . . . . . . . . . . . . . Sneak Attacks 3 | . . . . . . . . . . . . 1 . . . 2 Combat Hostiles . | . . . . . . . . . . . . . . . . . Follow-up Attacks . | . . . . . . . . . . . . . . . . . Damage Inflicted 17235 | 6 897 809 848 1846 3480 . . 29 1657 . 1084 5965 198 . . 416 Guns 4297 | 6 845 149 522 799 872 . . 12 134 . . 958 . . . . Cannons 6695 | . . 660 326 660 526 . . . 1258 . 322 2943 . . . . Explosions 5240 | . 52 . . 387 2082 . . 17 265 . 762 1675 . . . . Melee 975 | . . . . . . . . . . . . 361 198 . . 416 Ramming 28 | . . . . . . . . . . . . 28 . . . . Kinetic 4829 | 6 436 149 359 391 401 . . . 1094 . 231 1762 . . . . Thermal 5276 | . 288 660 489 867 891 . . 12 298 . 91 1680 . . . . Explosive 4857 | . . . . 387 2082 . . 17 265 . 762 1344 . . . . Electromagnetic 1270 | . 173 . . 201 106 . . . . . . 790 . . . . Impact 559 | . . . . . . . . . . . . 361 198 . . . Slashing 416 | . . . . . . . . . . . . . . . . 416 Piercing . | . . . . . . . . . . . . . . . . . Highest Corruption 20 | . . . . . 1 1 1 1 1 1 1 20 15 16 16 . Average Corruption 2 | . . . . . 1 1 1 1 1 1 1 10 7 8 16 . Corruption Purged 13 | . . . . . . . . . . . . 13 . . . . Corruption Blocked 3 | . . . . . 1 . . . 2 . . . . . . . Effects 109 | . . . . . 4 1 8 16 19 1 7 26 14 11 2 . Message Errors 26 | . . . . . 1 1 1 7 4 . 1 7 2 1 1 . Matter Fused 39 | . . . . . 2 . 1 4 8 . 4 11 5 3 1 . Heat Flow Errors 14 | . . . . . 1 . . 2 3 1 1 2 1 3 . . Energy Discharges 8 | . . . . . . . 2 . 3 . . 1 1 1 . . Data Loss (minor) 10 | . . . . . . . 3 1 . . . 1 2 3 . . Data Loss (major) 3 | . . . . . . . . . 1 . . 1 1 . . . Misfires 3 | . . . . . . . . 1 . . . 1 1 . . . Alerts 3 | . . . . . . . 1 1 . . . 1 . . . . Misdirections 2 | . . . . . . . . . . . . 1 1 . . . Weapon Failures 1 | . . . . . . . . . . . 1 . . . . . Overload Shots . | . . . . . . . . . . . . . . . . . Overflow Damage 840 | . . . 2 . 105 . . . 34 . 29 479 102 . . 89 Projectiles 110 | . . . 2 . . . . . 34 . 9 65 . . . . Explosions 368 | . . . . . 105 . . . . . 20 243 . . . . Melee 362 | . . . . . . . . . . . . 171 102 . . 89 Knockbacks 34 | . . . . . . . . . 10 . 2 21 1 . . . Impact 3 | . . . . . . . . . . . . 2 1 . . . Kinetic 25 | . . . . . . . . . 10 . 2 13 . . . . Secondary 6 | . . . . . . . . . . . . 6 . . . . Self-Inflicted Damage 306 | . . . . . 58 . . . . . 65 183 . . . . Shots 9 | . . . . . 1 . . . . . 2 6 . . . . Rammed . | . . . . . . . . . . . . . . . . . Targets Rammed . | . . . . . . . . . . . . . . . . . Kicked . | . . . . . . . . . . . . . . . . . Crushed . | . . . . . . . . . . . . . . . . . Highest Temperature 543 | . 358 318 188 342 360 . 30 178 272 239 221 543 133 135 . . Average Temperature 87 | . 88 89 65 74 101 . 17 69 60 122 35 133 48 66 . . Received Heat Transfer 2688 | . 270 81 57 576 576 . . . 198 . 18 816 96 . . . Effects 13 | . . 1 . . 6 . . . . . . 6 . . . . Shutdowns 1 | . . . . . 1 . . . . . . . . . . . Energy Bleed 3 | . . . . . 2 . . . . . . 1 . . . . Interference 6 | . . . . . 2 . . . . . . 4 . . . . Matter Decay 2 | . . 1 . . . . . . . . . 1 . . . . Short Circuit 1 | . . . . . 1 . . . . . . . . . . . Siege Activations . | . . . . . . . . . . . . . . . . . Martial Activations . | . . . . . . . . . . . . . . . . . Shielding Activations . | . . . . . . . . . . . . . . . . . Robots Disrupted . | . . . . . . . . . . . . . . . . . Combat Hostiles . | . . . . . . . . . . . . . . . . . Robots Corrupted 6 | . . . . . . . . . . . . 4 2 . . . Combat Hostiles 5 | . . . . . . . . . . . . 3 2 . . . Parts Fried 8 | . . . . . . . . . . . . 4 4 . . . Impact Corruptions 10 | . . . . . . . . . . . . 6 4 . . . Robots Melted 2 | . . . . . . . . . . . . 2 . . . . Combat Hostiles 2 | . . . . . . . . . . . . 2 . . . . Parts Melted 18 | . 1 2 2 5 1 . . . . . . 7 . . . . Heat Transferred 10760 | . 708 1147 962 1961 1704 . . 25 559 . 148 3546 . . . . Parts Sabotaged 3 | . . . . . . . . . . . . 3 . . . . Parts Stolen . | . . . . . . . . . . . . . . . . . Parts Stripped . | . . . . . . . . . . . . . . . . . Power Chain Reactions 2 | . 1 . . . . . . . . . . 1 . . . . Alert | -11 -10 -9 -9 -8 -7 -7 -7 -7 -7 -7 -6 -6 -6 -6 -6 -5 ------- Run | Yrd Mat Mat Min Mat Fac Was Fac Low Low Dat Pro Fac Low Low Zio Pro Maximum Alert Level 3 | . . . . 1 2 . . . . . . 3 . . . . Low Security (%) 57 | 100 100 100 100 71 10 100 100 . . . . . . . . . Level 1 13 | . . . . 28 29 . . . . . . 16 . . . . Level 2 18 | . . . . . 60 . . . . . . 35 . . . . Level 3 11 | . . . . . . . . . . . . 47 . . . . Level 4 . | . . . . . . . . . . . . . . . . . Level 5 . | . . . . . . . . . . . . . . . . . High Security . | . . . . . . . . . . . . . . . . . Max Security . | . . . . . . . . . . . . . . . . . Peak Influence 1044 | . 172 135 186 327 648 170 42 . . . . 1044 . . . . Initial 630 | . . 66 51 62 129 170 42 . . . . 630 . . . . Average 268 | . 37 38 43 122 420 115 3 . . . . 703 . . . . Influence Increases 5967 | . 361 329 364 738 1011 . 6 . 430 . 262 2190 135 . . 141 Destroy 0b10 Robot/C 3060 | . 260 220 220 480 420 . . . 320 . 180 820 80 . . 60 Destroy 0b10 Robot/NC 280 | . 5 35 35 25 60 . . . 5 . 5 100 . . . 10 Destroy Leader 634 | . 40 42 40 132 102 . . . 30 . 40 198 10 . . . Allied During Kill 139 | . . . 9 12 . . . . . . 7 85 . . . 26 Successful Hack 49 | . 22 11 . 12 . . . . . . . 4 . . . . Disable Machine 450 | . . . 15 . 300 . . . . . . 135 . . . . Destroy Structure 305 | . 4 6 . 17 129 . 6 . . . . 143 . . . . Advance Influence 600 | . . . . . . . . . . . . 600 . . . . Partial Spotted 15 | . . . . . . . . . . . . 15 . . . . Lose Combat Pursuer 435 | . 30 15 45 60 . . . . 75 . 30 90 45 . . 45 Influence Decreases 5940 | . 203 356 334 613 810 427 65 1 277 153 214 1266 560 245 302 114 Entered New Map 1702 | . . 92 80 99 157 317 18 1 . 153 . 18 360 105 302 . Time Decay 3275 | . 203 264 244 461 553 100 47 . 247 . 194 628 160 120 . 54 Search Patrol Dispatched 200 | . . . . . . . . . . . . 200 . . . . Lost Part 610 | . . . 10 40 100 10 . . 30 . 20 340 40 20 . . Lost Ally 153 | . . . . 13 . . . . . . . 80 . . . 60 Squads Dispatched 24 | . 2 1 . 2 5 . . . . . . 14 . . . . Investigation 7 | . 2 . . . . . . . . . . 5 . . . . Extermination 6 | . . . . . 3 . . . . . . 3 . . . . Reinforcement 7 | . . 1 . 2 . . . . . . . 4 . . . . Assault 3 | . . . . . 1 . . . . . . 2 . . . . Garrison 1 | . . . . . 1 . . . . . . . . . . . Intercept . | . . . . . . . . . . . . . . . . . Searches Triggered 2 | . . . . . . . . . . . . 2 . . . . Data Miner Redirects 4 | . . . . . . . . . . . . 4 . . . . Construction Impeded 3 | . . . . . . . . . . . . 3 . . . . Haulers Reinforced . | . . . . . . . . . . . . . . . . . Active Scanning Responses . | . . . . . . . . . . . . . . . . . Cargo Convoy Interrupts . | . . . . . . . . . . . . . . . . . Stealth | -11 -10 -9 -9 -8 -7 -7 -7 -7 -7 -7 -6 -6 -6 -6 -6 -5 --------- Run | Yrd Mat Mat Min Mat Fac Was Fac Low Low Dat Pro Fac Low Low Zio Pro Distress Signals 15 | . 1 1 . 7 1 . . . . . . 5 . . . . Communications Jammed . | . . . . . . . . . . . . . . . . . Distress Signals . | . . . . . . . . . . . . . . . . . Times Spotted 245 | . 21 21 13 42 36 5 2 . 21 . 14 55 8 1 . 6 Peak Tracking Total 11 | . 5 6 4 11 7 6 1 . 5 . 3 6 4 1 . 3 Tactical Retreats 21 | . 2 1 2 2 . 1 . . 4 . 2 4 1 . . 2 Traps | -11 -10 -9 -9 -8 -7 -7 -7 -7 -7 -7 -6 -6 -6 -6 -6 -5 ------- Run | Yrd Mat Mat Min Mat Fac Was Fac Low Low Dat Pro Fac Low Low Zio Pro Traps Triggered 4 | . . . . . 1 . . . . . . 2 . 1 . . Indirectly . | . . . . . . . . . . . . . . . . . Trap Hack Attempts . | . . . . . . . . . . . . . . . . . Triggered . | . . . . . . . . . . . . . . . . . Disarmed . | . . . . . . . . . . . . . . . . . Reprogrammed . | . . . . . . . . . . . . . . . . . Reused . | . . . . . . . . . . . . . . . . . Traps Extracted . | . . . . . . . . . . . . . . . . . Installed . | . . . . . . . . . . . . . . . . . Triggered . | . . . . . . . . . . . . . . . . . Machines | -11 -10 -9 -9 -8 -7 -7 -7 -7 -7 -7 -6 -6 -6 -6 -6 -5 ---------- Run | Yrd Mat Mat Min Mat Fac Was Fac Low Low Dat Pro Fac Low Low Zio Pro Machines Disabled 31 | . . . 1 . 20 . . 1 . . . 9 . . . . Max in Single Turn 5 | . . . . . 4 . . 1 . . . 5 . . . . Garrison Access 3 | . . . . 1 1 . 1 . . . . . . . . . Machines Repaired . | . . . . . . . . . . . . . . . . . Machines Dismantled . | . . . . . . . . . . . . . . . . . Machines Sabotaged . | . . . . . . . . . . . . . . . . . Overloaded Fab Kills . | . . . . . . . . . . . . . . . . . Hacking | -11 -10 -9 -9 -8 -7 -7 -7 -7 -7 -7 -6 -6 -6 -6 -6 -5 --------- Run | Yrd Mat Mat Min Mat Fac Was Fac Low Low Dat Pro Fac Low Low Zio Pro Machines Accessed 37 | . 7 4 . 7 3 . 3 . 2 4 . 6 . 1 . . Terminals 19 | . 6 4 . 5 . . 2 . . . . 2 . . . . Fabricators 4 | . . . . . 2 . . . . . . 2 . . . . Repair Stations 2 | . 1 . . 1 . . . . . . . . . . . . Recycling Units 1 | . . . . . . . . . . . . 1 . . . . Scanalyzers . | . . . . . . . . . . . . . . . . . Garrison Access 4 | . . . . 1 1 . 1 . . . . 1 . . . . Total Hacks 126 | . 27 19 . 18 6 . 6 . 4 31 . 14 . 1 . . Successful 82 | . 16 9 . 10 4 . 2 . 4 31 . 5 . 1 . . Failed 44 | . 11 10 . 8 2 . 4 . . . . 9 . . . . Catastrophic 3 | . 1 1 . . . . . . . . . 1 . . . . Database Lockouts . | . . . . . . . . . . . . . . . . . Manual 42 | . 16 11 . 10 1 . 1 1 . . . 2 . . . . Terminals 61 | . 22 19 . 13 . . 4 . . . . 3 . . . . Fabricators 9 | . . . . . 4 . . . . . . 5 . . . . Repair Stations 9 | . 5 . . 4 . . . . . . . . . . . . Recycling Units 4 | . . . . . . . . . . . . 4 . . . . Scanalyzers . | . . . . . . . . . . . . . . . . . Garrison Access 7 | . . . . 1 2 . 2 . . . . 2 . . . . Terminal Hacks 54 | . 9 5 . 2 . . 1 . 4 31 . 1 . 1 . . Record 14 | . . . . . . . . . 3 11 . . . . . . Part Schematic 13 | . . . . . . . . . . 13 . . . . . . Robot Schematic 4 | . . . . . . . . . . 4 . . . . . . Robot Analysis 2 | . . 1 . 1 . . . . . . . . . . . . Prototype ID Bank 5 | . 2 . . . . . . . . 3 . . . . . . Open Door 2 | . . . . . . . . . 1 . . . . 1 . . Branch Access Points 4 | . 1 1 . 1 . . 1 . . . . . . . . . Emergency Access Points 1 | . 1 . . . . . . . . . . . . . . . Terminal Index 2 | . . 1 . . . . . . . . . 1 . . . . Locate Traps 2 | . 2 . . . . . . . . . . . . . . . Maintenance Status 1 | . . 1 . . . . . . . . . . . . . . Zone Layout 4 | . 3 1 . . . . . . . . . . . . . . Fabricator Hacks 5 | . . . . . 2 . . . . . . 3 . . . . Network Status 3 | . . . . . 2 . . . . . . 1 . . . . Load Schematic 1 | . . . . . . . . . . . . 1 . . . . Build 1 | . . . . . . . . . . . . 1 . . . . Repair Station Hacks 7 | . 3 . . 4 . . . . . . . . . . . . Scan Component 3 | . 1 . . 2 . . . . . . . . . . . . Repair 3 | . 1 . . 2 . . . . . . . . . . . . Refit 1 | . 1 . . . . . . . . . . . . . . . Recycling Unit Hacks 1 | . . . . . . . . . . . . 1 . . . . Report Inventory 1 | . . . . . . . . . . . . 1 . . . . Scanalyzer . | . . . . . . . . . . . . . . . . . Garrison Access Hacks 3 | . . . . 1 1 . 1 . . . . . . . . . Seal Access 3 | . . . . 1 1 . 1 . . . . . . . . . Unauthorized Hacks 12 | . 4 4 . 3 1 . . . . . . . . . . . Terminals 11 | . 4 4 . 3 . . . . . . . . . . . . Assimilate 2 | . 1 1 . . . . . . . . . . . . . . Botnet 5 | . 2 1 . 2 . . . . . . . . . . . . Operators 4 | . 1 2 . 1 . . . . . . . . . . . . Fabricators 1 | . . . . . 1 . . . . . . . . . . . Report 1 | . . . . . 1 . . . . . . . . . . . Repair Stations . | . . . . . . . . . . . . . . . . . Recycling Units . | . . . . . . . . . . . . . . . . . Scanalyzers . | . . . . . . . . . . . . . . . . . Garrison Access . | . . . . . . . . . . . . . . . . . Data Cores Recovered . | . . . . . . . . . . . . . . . . . Used . | . . . . . . . . . . . . . . . . . Hacking Detections 27 | . 6 4 . 6 2 . 3 . . . . 6 . . . . Full Trace Events 6 | . 2 . . 1 . . . . . . . 3 . . . . Feedback Events . | . . . . . . . . . . . . . . . . . Feedback Blocked . | . . . . . . . . . . . . . . . . . Robot Schematics Acquired 4 | . . . . . . . . . . 4 . . . . . . Robots Built . | . . . . . . . . . . . . . . . . . Authchips . | . . . . . . . . . . . . . . . . . Time . | . . . . . . . . . . . . . . . . . Total Robot Build Rating . | . . . . . . . . . . . . . . . . . Part Schematics Acquired 13 | . . . . . . . . . . 13 . . . . . . Parts Built 1 | . . . . . . . . . . . . 1 . . . . Authchips . | . . . . . . . . . . . . . . . . . Time 169 | . . . . . . . . . . . . 169 . . . . Total Part Build Rating 6 | . . . . . . . . . . . . 6 . . . . Part Studies Acquired . | . . . . . . . . . . . . . . . . . Parts Repaired 3 | . 1 . . 2 . . . . . . . . . . . . Time 90 | . 26 . . 64 . . . . . . . . . . . . Parts Recycled . | . . . . . . . . . . . . . . . . . Recycled Matter . | . . . . . . . . . . . . . . . . . Retrieved Matter . | . . . . . . . . . . . . . . . . . Retrieved Components . | . . . . . . . . . . . . . . . . . Parts Scanalyzed . | . . . . . . . . . . . . . . . . . Part Schematics Acquired . | . . . . . . . . . . . . . . . . . Parts Damaged . | . . . . . . . . . . . . . . . . . Bothacking | -11 -10 -9 -9 -8 -7 -7 -7 -7 -7 -7 -6 -6 -6 -6 -6 -5 ------------ Run | Yrd Mat Mat Min Mat Fac Was Fac Low Low Dat Pro Fac Low Low Zio Pro Used RIF Installer . | . . . . . . . . . . . . . . . . . Robots Hacked 1 | . . . . . . . . . . . . . . . . 1 Non-combat 1 | . . . . . . . . . . . . . . . . 1 Combat . | . . . . . . . . . . . . . . . . . Robot Hacks Applied 1 | . . . . . . . . . . . . . . . . 1 parse_system 1 | . . . . . . . . . . . . . . . . 1 Relay Couplers Released 3 | . . . . . . . . . . . . 3 . . . . Programmers 3 | . . . . . . . . . . . . 3 . . . . Fabnet Peak Effective % . | . . . . . . . . . . . . . . . . . Robots Rewired . | . . . . . . . . . . . . . . . . . Allies Hacked . | . . . . . . . . . . . . . . . . . Hacks Repelled . | . . . . . . . . . . . . . . . . . Allies | -11 -10 -9 -9 -8 -7 -7 -7 -7 -7 -7 -6 -6 -6 -6 -6 -5 -------- Run | Yrd Mat Mat Min Mat Fac Was Fac Low Low Dat Pro Fac Low Low Zio Pro Total Allies 9 | . 1 1 2 . . . . . . . 1 . . . 4 . Largest Group 4 | . 1 1 3 2 . . . . . . 1 1 . . 4 4 Highest-Rated Group 160 | . 10 10 52 40 . . . . . . 96 96 . . 160 160 Highest-Rated Ally 96 | . 10 10 31 31 . . . . . . 96 96 . . 41 41 Total Orders 2 | . . . . . . . . . . . . 1 . . . 1 EXPLORE 2 | . . . . . . . . . . . . 1 . . . 1 Ally Attacks 108 | . . . 8 25 . . . . . . . 55 . . . 20 Total Damage 1969 | . . . 86 336 . . . . . . . 1220 . . . 327 Kills 17 | . . . 1 3 . . . . . . . 11 . . . 2 Allies Corrupted . | . . . . . . . . . . . . . . . . . Allies Melted . | . . . . . . . . . . . . . . . . . Intel | -11 -10 -9 -9 -8 -7 -7 -7 -7 -7 -7 -6 -6 -6 -6 -6 -5 ------- Run | Yrd Mat Mat Min Mat Fac Was Fac Low Low Dat Pro Fac Low Low Zio Pro Active Infowar (turns) 12613 | . . 130 1728 1085 999 211 733 2164 1561 . 516 1792 330 246 817 301 Optics 2781 | . . . . . . . . . . . . 1087 330 246 817 301 IFF 320 | . . . . . . . . . . . . 320 . . . . Terrain 8290 | . . 130 1728 1083 778 177 679 2161 1502 . . 52 . . . . Seismic 6859 | . . . . 860 474 211 733 2160 1200 . 516 705 . . . . Decoding 900 | . . . . . . . . . . . . . . . 599 301 Robot Analysis Total 2 | . . 1 . 1 . . . . . . . . . . . . Derelict Logs Recovered 5 | . . . 1 . . . . . 1 . . . . 1 1 1 Drone Launches 5 | . . . . . . . . . . . . 4 . . 1 . Drone Recoveries . | . . . . . . . . . . . . . . . . . Exploration | -11 -10 -9 -9 -8 -7 -7 -7 -7 -7 -7 -6 -6 -6 -6 -6 -5 ------------- Run | Yrd Mat Mat Min Mat Fac Was Fac Low Low Dat Pro Fac Low Low Zio Pro Turns Passed 16085 | 63 809 648 1728 1475 1605 215 733 2185 2020 98 640 2172 330 246 817 301 Spaces Moved 7971 | 50 472 296 553 486 559 170 410 417 708 82 470 1052 553 343 986 364 Core 20 | 1 . . . . . . . . . . . 19 . . . . Treads 1485 | . . 79 57 399 559 . . 329 54 . . 8 . . . . Legs 329 | . . . . . . . . . . . . 329 . . . . Wheels 3891 | 49 472 217 496 87 . 170 410 88 654 82 470 696 . . . . Hover . | . . . . . . . . . . . . . . . . . Flight 2246 | . . . . . . . . . . . . . 553 343 986 364 Fastest Speed 32 | 50 90 115 120 120 160 120 120 120 120 120 120 105 42 32 42 49 Average Speed 125 | 91 109 149 140 218 227 120 120 221 153 120 120 137 50 44 47 49 Slowest Speed 1250 | 100 155 240 320 240 243 120 120 243 245 120 120 1250 52 115 49 49 Overloaded Moves . | . . . . . . . . . . . . . . . . . Propulsion Burnouts . | . . . . . . . . . . . . . . . . . Robots Hopped . | . . . . . . . . . . . . . . . . . Potential Cave-ins . | . . . . . . . . . . . . . . . . . Cave-ins Triggered . | . . . . . . . . . . . . . . . . . Exploration Rate (%) 55 | 3 56 21 98 57 18 85 12 56 70 70 62 30 72 70 90 69 Regions Visited 16 Branch Regions 9 Pre-discovered Areas 2 | . . . . . . . . . . 1 . . . . 1 . Known Exits Taken 6 | . . 1 . 1 . . 1 . . . . 1 1 1 . . Unknown Exits Taken 8 | 1 1 . 1 . . . . 1 1 1 1 . . . 1 . Scrap Searched 17 | . . . 2 . . . . 1 2 . 1 . 2 3 5 1 Spaces Dug 42 | . 1 3 . 3 2 . 6 10 . . . 5 10 . . 2 Terrain Destroyed 515 | . 4 3 . 11 152 . 6 10 30 . 136 151 10 . . 2 Melee 26 | . . . . . 2 . 6 1 . . . 5 10 . . 2 Projectile 41 | . 1 3 . 3 3 . . . 12 . 5 14 . . . . AOE 447 | . 3 . . 8 147 . . 9 18 . 131 131 . . . . Terrain Rammed 1 | . . . . . . . . . . . . 1 . . . . Walls Destroyed 1 | . . . . . . . . . . . . 1 . . . . Machines Disabled . | . . . . . . . . . . . . . . . . . Actions | -11 -10 -9 -9 -8 -7 -7 -7 -7 -7 -7 -6 -6 -6 -6 -6 -5 --------- Run | Yrd Mat Mat Min Mat Fac Was Fac Low Low Dat Pro Fac Low Low Zio Pro Total 13083 | 61 675 431 1432 763 770 179 642 1670 1549 81 502 1517 577 437 1329 468 Wait 4071 | . 105 68 828 120 79 5 189 1224 782 . 6 210 1 62 309 83 Move 7956 | 49 471 295 552 485 559 169 409 416 707 81 469 1051 552 342 985 364 Hop . | . . . . . . . . . . . . . . . . . Pick Up 125 | 4 23 7 1 18 15 . 15 5 1 . 1 18 . 9 6 2 Fast Attach 62 | 6 5 1 . 5 3 . . 3 . . . 19 3 5 11 1 Attach 83 | . . 3 1 9 16 . 4 2 3 . 2 30 3 4 4 2 Detach 23 | . 1 1 . 1 3 1 . . . . . 8 . 2 6 . Swap 138 | 1 10 14 6 25 19 4 4 12 12 . 3 22 1 3 2 . Drop 114 | . 14 9 4 25 8 . 12 6 . . . 16 2 10 6 2 Fire 455 | 1 46 33 40 75 66 . 1 1 44 . 21 125 . . . 2 Melee 55 | . . . . . 2 . 8 1 . . . 17 15 . . 12 Ram 1 | . . . . . . . . . . . . 1 . . . . Kick . | . . . . . . . . . . . . . . . . . Crush . | . . . . . . . . . . . . . . . . . Escape Stasis . | . . . . . . . . . . . . . . . . . Rewire . | . . . . . . . . . . . . . . . . . Trap . | . . . . . . . . . . . . . . . . . Miscellaneous . | . . . . . . . . . . . . . . . . . Route ------- -11/Scrapyard -10/Materials (discovered 3 exits: *Mat x2 / Min) -9/Materials -9/Mines (discovered 2 exits: *Mat x2) -8/Materials (discovered 3 exits: *Fac x2 / Sto) -7/Factory -7/Waste -7/Factory (discovered 2 exits: *Low x2) -7/Lower Caves -7/Lower Caves -7/Data Miner -6/Proximity Caves -6/Factory (discovered 2 exits: [*Fac] / *Low) -6/Lower Caves -6/Lower Caves -6/Zion -5/Proximity Caves History --------- Turn | Location | Event 6 | -11/Scrapyard | Discovered new exit (range 16) 64 | -11/Scrapyard | Entered Materials 311 | -10/Materials | Build established: Mutant 381 | -10/Materials | Identified exit to Mines 481 | -10/Materials | Repaired Wheel 522 | -10/Materials | Discovered new exit (range 15) 738 | -10/Materials | Discovered new exit (range 15) 745 | -10/Materials | Core integrity fell below 50% 873 | -10/Materials | Entered another Materials area 873 | -9/Materials | Accompanied by 1 ally 873 | -9/Materials | Evolved 2 slots: Utility x2 950 | -9/Materials | Identified exit to Mines 1521 | -9/Materials | Entered Mines 1521 | -9/Mines | Accompanied by 1 ally 1610 | -9/Mines | Discovered new exit (range 9) 3087 | -9/Mines | Build established: Scavenger-Mutant 3107 | -9/Mines | Discovered new exit (range 6) 3120 | -9/Mines | Learned 4 Materials zone layouts 3249 | -9/Mines | Entered Materials 3249 | -8/Materials | Accompanied by 2 allies 3249 | -8/Materials | Evolved 2 slots: Utility x2 3250 | -8/Materials | Identified exit to Factory 3254 | -8/Materials | Led the pair of lost Derelicts to an unsafe place 4006 | -8/Materials | Identified exit to Storage 4357 | -8/Materials | Lost 4 parts (2u2w) 4399 | -8/Materials | Core integrity fell below 50% 4613 | -8/Materials | Repaired Utility Shielding 4630 | -8/Materials | Discovered exit to Factory (range 16) 4652 | -8/Materials | Repaired Deuterium Engine 4724 | -8/Materials | Entered Factory 4724 | -7/Factory | Evolved 2 slots: Propulsion x1, Utility x1 5118 | -7/Factory | Build established: Mutant 5347 | -7/Factory | Garrison activated, responded to threat 5784 | -7/Factory | Build established: Scavenger-Mutant 5924 | -7/Factory | First assault squad dispatched 5937 | -7/Factory | Discovered new exit (range 14) 5994 | -7/Factory | Lost 6 parts (1n3u2w) 6329 | -7/Factory | Sucked down chute 6329 | -7/Factory | Entered Waste 6377 | -7/Waste | Spotted C-40 Crusher 6383 | -7/Waste | Spotted C-40 Crusher 6435 | -7/Waste | Crushed by Compactor (1 part destroyed, 1 dropped) 6439 | -7/Waste | Spotted C-40 Crusher 6477 | -7/Waste | Spotted C-40 Crusher 6482 | -7/Waste | Spotted C-40 Crusher 6495 | -7/Waste | Spotted C-40 Crusher 6527 | -7/Waste | Discovered new exit (range 11) 6544 | -7/Waste | Entered Factory 6638 | -7/Factory | Build established: Hacker-Mutant 6730 | -7/Factory | Identified exit to Lower Caves 7277 | -7/Factory | Entered Lower Caves 8142 | -7/Lower Caves | Encountered a Warlord checkpoint 9213 | -7/Lower Caves | Found Alien Artifact 9216 | -7/Lower Caves | Identified Core Expander 9216 | -7/Lower Caves | Installed Core Expander, added new Utility slot 9357 | -7/Lower Caves | Discovered new exit (range 15) 9402 | -7/Lower Caves | Acquired the password to a Derelict Tinkerer's latest research 9427 | -7/Lower Caves | Found Prototype Special Weapon 9427 | -7/Lower Caves | Identified Molecular Deconstructor 9462 | -7/Lower Caves | Entered another Lower Caves area 9708 | -7/Lower Caves | Learned Factory stockpile data 10675 | -7/Lower Caves | Discovered new exit (range 16) 11237 | -7/Lower Caves | Core integrity fell below 50% 11332 | -7/Lower Caves | Learned Research emergency access door positions 11482 | -7/Lower Caves | Entered Data Miner 11482 | -7/Data Miner | Discovered new exit (range 6) 11505 | -7/Data Miner | Met Data Miner 11536 | -7/Data Miner | Learned location of Section 7 (-2) 11536 | -7/Data Miner | Acquired the access code to Warlord's prototype stash 11547 | -7/Data Miner | Received God Mode back door access code from Data Miner 11580 | -7/Data Miner | Entered Proximity Caves 11583 | -6/Proximity Caves | Spotter reported a threat 11583 | -6/Proximity Caves | Spotter reported a threat 11738 | -6/Proximity Caves | Spotter reported a threat 11966 | -6/Proximity Caves | Spotter reported a threat 12127 | -6/Proximity Caves | Escorted by Enhanced Grunt 12210 | -6/Proximity Caves | Discovered new exit (range 5) 12220 | -6/Proximity Caves | Entered Factory 12220 | -6/Factory | Accompanied by 1 ally 12220 | -6/Factory | Evolved 2 slots: Propulsion x1, Utility x1 12284 | -6/Factory | Incoming investigation squad redirected 12410 | -6/Factory | Incoming investigation squad redirected 12556 | -6/Factory | Fabricated Combat Drone Bay (x1) 12570 | -6/Factory | Search patrols dispatched 12920 | -6/Factory | Search patrols dispatched 13159 | -6/Factory | Destroyed 7 combat bots 13530 | -6/Factory | Lost 3 parts (1n1u1w) 13624 | -6/Factory | Incoming investigation squad redirected 13817 | -6/Factory | Core integrity fell below 50% 13831 | -6/Factory | Lost 4 parts (2n1u1w) 13970 | -6/Factory | First assault squad dispatched 14027 | -6/Factory | System corruption reached 10% 14035 | -6/Factory | Core integrity fell below 20% 14062 | -6/Factory | Lost 12 parts (1p2n7u2w) 14199 | -6/Factory | Discovered new exit (range 58) 14214 | -6/Factory | Assembled infested ambush trap array 14298 | -6/Factory | Build established: Mutant 14335 | -6/Factory | Discovered new exit (range 9) 14349 | -6/Factory | Incoming assault squad redirected 14375 | -6/Factory | Identified exit to Lower Caves 14392 | -6/Factory | Entered Lower Caves 14714 | -6/Lower Caves | Discovered new exit (range 10) 14721 | -6/Lower Caves | Identified exit to Lower Caves 14722 | -6/Lower Caves | Entered another Lower Caves area 14744 | -6/Lower Caves | Learned Factory emergency access door positions 14890 | -6/Lower Caves | Spotted B-75 Beast 14949 | -6/Lower Caves | Discovered new exit (range 11) 14953 | -6/Lower Caves | Identified exit to Zion 14968 | -6/Lower Caves | Entered Zion 14981 | -6/Zion | Given the Hacking Drone Bay 14981 | -6/Zion | Found Prototype Device 14992 | -6/Zion | System corruption cleaned by Quarantine Array 15009 | -6/Zion | Given A8's code to call for help 15015 | -6/Zion | Identified Hacking Drone Bay 15177 | -6/Zion | Found Prototype Hackware 15177 | -6/Zion | Identified Exp. Hacking Suite 15179 | -6/Zion | Found Prototype Processor 15179 | -6/Zion | Identified Exp. Target Analyzer 15183 | -6/Zion | Found Prototype Processor 15183 | -6/Zion | Identified Spectral Analyzer 15283 | -6/Zion | Build established: Derelict-Mutant 15357 | -6/Zion | Learned location of Armory (-4) 15385 | -6/Zion | Learned 4 Factory zone layouts 15468 | -6/Zion | Met Imprinter 15478 | -6/Zion | Imprinted 15480 | -6/Zion | Declared Zion's savior 15737 | -6/Zion | Discovered new exit (range 14) 15785 | -6/Zion | Entered Proximity Caves 15785 | -5/Proximity Caves | Accompanied by 5 allies 15936 | -5/Proximity Caves | Spotter reported a threat 15953 | -5/Proximity Caves | Spotted B-75 Beast 15964 | -5/Proximity Caves | Attracted the attention of an 0b10 checkpoint 15974 | -5/Proximity Caves | Spotter reported a threat 15989 | -5/Proximity Caves | Spotter reported a threat 16043 | -5/Proximity Caves | Spotter reported a threat 16063 | -5/Proximity Caves | Learned Factory emergency access door positions 16084 | -5/Proximity Caves | Spotter reported a threat 16086 | -5/Proximity Caves | Destroyed by S-27 Virus with Autogun Last Messages --------------- 16017_ Imp. Medium Armor Plating fries itself beyond repair. 16021_ Corrupted Rnf. Fission Core fries itself beyond repair. 16023_ YM-R6B(M) destroyed. 16025_ Imp. Treads self-destruct mechanism malfunctions. 16026_ XZ-SIY(M) Arm. Treads blasted off. 16026_ Y-64 Sentinel KE Penetrator severed. 16028_ Y-64 Sentinel destroyed. 16038_ Corrupted Wave Gun self-destruct mechanism malfunctions. 16038_ Adv. Heat Sink self-destruct mechanism malfunctions. 16043_ ALERT: Unidentified potential threat approaching Complex 0b10. 16063_ Acquired derelict log, extracted data. Data stored: Factory emergency access points. 16084_ ALERT: Unidentified potential threat approaching Complex 0b10. Map ----- +----------------------------------------------------+ | ????????????????## #??????# ##?????????### | | ????????????????# ####### ######????## # | | ?????????????????### &&& #????# | | ???????????????????## &%&& ##?### | | ???????????????????## ### &&& ### #?# | | ??????????????????## ##### & #?## #?# | | ??????????????????# ## ### ## # ### | | ??????????????????# != # ## ### # # | | ??????????????????# *% ### ### # # ## | | ??????????????????## ![ ## #?# # ## ##? | | ???????????????????# %[ ## ##?# # # ##?? | | ??????????????????## #??## # #??? | | ?????????????????## ## ### #???## # ##??? | | ?????????????????# #####?# #????## ##????? | | ?????????????????## ##???# #?##? ## ##?????? | | ??????????????????## #???# #?# ####??????? | | ???????????????????# ##### ?????????? | | ???????????????????# #?# ????????????? | | ???????????????????# % #########?# #????????????? | | ???????????????????# #?????##### ####?######### | | ???????????????#????##% ####??# #?# | | ???????????????# ??#%* ##?# ### | | ???????????????# [ ## ### """" ####### | | ???????????????# %[ ?# # """" #####???### | | ???????????????## s ## """" #???????# | | ????????????????# $@ "" #???????# | | ????????????????# #### "" #???????# | | ????????????????#######???# ## """" #??????## | | ??????????????????????????# ### "" #?????## | | ??????????????????????????###?# #?????# | | ??????????????????????????????##########?????# | | ?????????????????????????????????????????????## # | | ??????????????????????????????????????????????###? | | ?????????????????????????????????????????????????? | | ?????????????????????????????????????????????????? | | ?????????????????????????????????????????????????? | | ?????????????????????????????????????????????????? | | ?????????????????????????????????????????????????? | | ?????????????????????????????????????????????????? | | ?????????????????????????????????????????????????? | | ?????????????????????????????????????????????????? | | ?????????????????????????????????????????????????? | | ?????????????????????????????????????????????????? | | ?????????????????????????????????????????????????? | | ?????????????????????????????????????????????????? | | ?????????????????????????????????????????????????? | | ?????????????????????????????????????????????????? | | ?????????????????????????????????????????????????? | | ?????????????????????????????????????????????????? | | ?????????????????????????????????????????????????? | +----------------------------------------------------+ Best States ------------- Heat Dissipation 56 Energy Generation 18 Energy Capacity 310 Matter Stores 300 Matter Capacity 300 Sight Range 23 Terrain Scan Range 16 Terrain Scan Density 210 Additional Mass Support 12 Corruption Containment 8 Corruption Block 8 Armor Coverage 600 Propulsion Shielding 66 Utility Shielding 66 Evasion (%) 63 Melee Accuracy 14 Target Analysis 10 Recoil Reduction 3 Offensive Hacking 30 Defensive Hacking 12 Item Schematics ----------------- Combat Drone Bay | -7/Data Miner | Free Lgt. Regenerative Plating | -7/Data Miner | Free Cld. Aerolev Unit | -7/Data Miner | Free Thermal Defense Suite | -7/Data Miner | Free Imp. Lightning Gun | -7/Data Miner | Free Gyrokinetic Inverter | -7/Data Miner | Free Adv. Cooling System | -7/Data Miner | Free Wave Gun | -7/Data Miner | Free Adv. Heat Sink | -7/Data Miner | Free Mic. Fission Core | -7/Data Miner | Free Imp. Remote Datajack | -7/Data Miner | Free Imp. Gyrokinetic Inverter | -7/Data Miner | Free Imp. Force Booster | -7/Data Miner | Free Robot Schematics ------------------ B-48 Gladiator | -7/Data Miner | Free S-27 Virus | -7/Data Miner | Free G-47 Trooper | -7/Data Miner | Free L-41 Fighter | -7/Data Miner | Free Fabricated ------------ Combat Drone Bay | x1 | -6/Factory Repaired ---------- Wheel | 42% | -10/Materials Utility Shielding | 38% | -8/Materials Deuterium Engine | 26% | -8/Materials Studied --------- None Alien Tech Used ----------------- Core Expander Achievements -------------- None Challenges ------------ None Game ------ Seed CatalystContainmentRipteeth Manual? 0 Play Time 03:04:40 Cumulative 149.1 hours Start 2026.03.08 @ 22:31:31 End 2026.03.09 @ 04:09:32 Sessions 3 Manual Loads 0 Difficulty Rogue Special Mode None Game No. 119 Rogue 119 Adventurer 0 Explorer 0 Win Type - Total 0 Types 0/0/0/0/0/0/0/0/0/0 Lore% 54 Gallery% 48 Achievement% 37 Wizard Run 0 Options --------- Layout 1 ASCII 1 Keyboard 1 Movement Numpad Keybinds 0 Fullscreen 1 Font 24/Smallcaps Map View 50x35 Zoom Use 0% Tactical HUD 1 Map Filters NONE Filters NONE Steam 1 RUN: 65fb152d-3e0e-4e58-878d-995c296e64ab